[Event "Titled Tuesday Blitz June 1 2021"]
[White "Wagner, Dinara"]
[Black "Nazaretyan, Tigran"]
[WhiteFideId "24157570"]
[BlackFideId "24162345"]
[WhiteElo "2260"]
[BlackElo "2247"]
[Result "1-0"]
[Round "10"]
[TimeControl "180+1"]
[Date "2021.06.01"]
[WhiteClock "0:02:33"]
[BlackClock "0:01:05"]

1. d4 {[%clk 0:03:00]}  Nf6 {[%clk 0:02:59]} 2. c4 {[%clk 0:03:00]}  c5 {[%clk 0:02:58]} 3. d5 {[%clk 0:03:00]}  b5 {[%clk 0:02:58]} 4. cxb5 {[%clk 0:02:59]}  a6 {[%clk 0:02:58]} 5. bxa6 {[%clk 0:03:00]}  Bxa6 {[%clk 0:02:58]} 6. Nf3 {[%clk 0:03:00]}  g6 {[%clk 0:02:57]} 7. g3 {[%clk 0:03:00]}  Bg7 {[%clk 0:02:57]} 8. Bg2 {[%clk 0:03:00]}  O-O {[%clk 0:02:57]} 9. O-O {[%clk 0:03:01]}  d6 {[%clk 0:02:56]} 10. Nc3 {[%clk 0:03:01]}  Nbd7 {[%clk 0:02:55]} 11. Qc2 {[%clk 0:03:01]}  Ne8 {[%clk 0:02:55]} 12. Rd1 {[%clk 0:03:01]}  Nc7 {[%clk 0:02:55]} 13. a4 {[%clk 0:02:59]}  Nb6 {[%clk 0:02:48]} 14. Rb1 {[%clk 0:02:56]}  Bxc3 {[%clk 0:02:34]} 15. bxc3 {[%clk 0:02:53]}  Nbxd5 {[%clk 0:02:29]} 16. Bh6 {[%clk 0:02:53]}  Re8 {[%clk 0:02:27]} 17. Ng5 {[%clk 0:02:52]}  e6 {[%clk 0:02:21]} 18. c4 {[%clk 0:02:47]}  Nb4 {[%clk 0:02:19]} 19. Rxb4 {[%clk 0:02:39]}  cxb4 {[%clk 0:02:19]} 20. Bxa8 {[%clk 0:02:40]}  Nxa8 {[%clk 0:02:09]} 21. Qb2 {[%clk 0:02:39]}  f6 {[%clk 0:02:09]} 22. Ne4 {[%clk 0:02:39]}  Bxc4 {[%clk 0:01:06]} 23. Nxf6+ {[%clk 0:02:35]}  Kf7 {[%clk 0:01:05]} 24. Nxe8 {[%clk 0:02:32]}  Kxe8 {[%clk 0:01:06]} 25. Qh8+ {[%clk 0:02:33]}  Kd7 {[%clk 0:01:05]} 26. Rxd6+ {[%clk 0:02:33]} 1-0


[Site "https://www.chess.com"]

[Event "Titled Tuesday Blitz June 1 2021"]
[White "Fayzullaev, Akmal"]
[Black "Krivonosov, Oleg"]
[WhiteFideId "14200554"]
[BlackFideId "11600349"]
[WhiteElo "2264"]
[BlackElo "2469"]
[Result "1-0"]
[Round "10"]
[TimeControl "180+1"]
[Date "2021.06.01"]
[WhiteClock "0:01:45"]
[BlackClock "0:00:11"]

1. e4 {[%clk 0:03:00]}  e5 {[%clk 0:02:59]} 2. Nf3 {[%clk 0:03:00]}  Nc6 {[%clk 0:02:58]} 3. Bb5 {[%clk 0:03:01]}  Nf6 {[%clk 0:02:57]} 4. d3 {[%clk 0:03:00]}  Bc5 {[%clk 0:02:56]} 5. Bxc6 {[%clk 0:02:58]}  dxc6 {[%clk 0:02:56]} 6. O-O {[%clk 0:02:59]}  Bg4 {[%clk 0:02:53]} 7. Be3 {[%clk 0:02:58]}  Qe7 {[%clk 0:02:52]} 8. h3 {[%clk 0:02:58]}  Bxf3 {[%clk 0:02:51]} 9. Qxf3 {[%clk 0:02:58]}  Bxe3 {[%clk 0:02:49]} 10. Qxe3 {[%clk 0:02:56]}  Nd7 {[%clk 0:02:48]} 11. Nd2 {[%clk 0:02:49]}  Qc5 {[%clk 0:02:44]} 12. Nc4 {[%clk 0:02:46]}  Qxe3 {[%clk 0:02:42]} 13. Nxe3 {[%clk 0:02:47]}  f6 {[%clk 0:02:35]} 14. Rad1 {[%clk 0:02:44]}  O-O-O {[%clk 0:02:30]} 15. d4 {[%clk 0:02:38]}  exd4 {[%clk 0:02:23]} 16. Rxd4 {[%clk 0:02:39]}  Nc5 {[%clk 0:02:23]} 17. Rfd1 {[%clk 0:02:40]}  Rxd4 {[%clk 0:02:19]} 18. Rxd4 {[%clk 0:02:41]}  Rd8 {[%clk 0:02:14]} 19. Rxd8+ {[%clk 0:02:40]}  Kxd8 {[%clk 0:02:14]} 20. f3 {[%clk 0:02:41]}  Na4 {[%clk 0:02:14]} 21. Nd1 {[%clk 0:02:41]}  c5 {[%clk 0:02:12]} 22. Kf2 {[%clk 0:02:42]}  c4 {[%clk 0:02:12]} 23. Ke3 {[%clk 0:02:17]}  c5 {[%clk 0:02:10]} 24. Kf4 {[%clk 0:02:11]}  Ke7 {[%clk 0:02:07]} 25. e5 {[%clk 0:02:10]}  b5 {[%clk 0:02:04]} 26. exf6+ {[%clk 0:02:10]}  Kxf6 {[%clk 0:02:03]} 27. h4 {[%clk 0:02:11]}  b4 {[%clk 0:01:56]} 28. g4 {[%clk 0:02:09]}  Ke6 {[%clk 0:01:40]} 29. Ke4 {[%clk 0:02:05]}  Nb6 {[%clk 0:01:36]} 30. Ne3 {[%clk 0:02:05]}  a5 {[%clk 0:01:34]} 31. f4 {[%clk 0:02:03]}  a4 {[%clk 0:01:30]} 32. f5+ {[%clk 0:01:59]}  Kd6 {[%clk 0:01:29]} 33. g5 {[%clk 0:01:59]}  b3 {[%clk 0:00:58]} 34. cxb3 {[%clk 0:01:56]}  cxb3 {[%clk 0:00:57]} 35. axb3 {[%clk 0:01:55]}  axb3 {[%clk 0:00:57]} 36. h5 {[%clk 0:01:54]}  Na4 {[%clk 0:00:26]} 37. Nc4+ {[%clk 0:01:52]}  Ke7 {[%clk 0:00:26]} 38. Ke5 {[%clk 0:01:44]}  Kf7 {[%clk 0:00:18]} 39. h6 {[%clk 0:01:42]}  gxh6 {[%clk 0:00:17]} 40. gxh6 {[%clk 0:01:43]}  Ke7 {[%clk 0:00:16]} 41. f6+ {[%clk 0:01:43]}  Kf8 {[%clk 0:00:15]} 42. Kf5 {[%clk 0:01:44]}  Kf7 {[%clk 0:00:13]} 43. Ke5 {[%clk 0:01:45]}  Kf8 {[%clk 0:00:12]} 44. Ke6 {[%clk 0:01:45]}  Ke8 {[%clk 0:00:11]} 45. f7+ {[%clk 0:01:45]} 1-0


[Site "https://www.chess.com"]

[Event "Titled Tuesday Blitz June 1 2021"]
[White "Girish, A. Koushik"]
[Black "Topalov, Aleksandar"]
[WhiteFideId "5038448"]
[BlackFideId "925659"]
[WhiteElo "2387"]
[BlackElo "2228"]
[Result "1-0"]
[Round "10"]
[TimeControl "180+1"]
[Date "2021.06.01"]
[WhiteClock "0:00:20"]
[BlackClock "0:00:03"]

1. d4 {[%clk 0:03:00]}  Nf6 {[%clk 0:02:58]} 2. Bg5 {[%clk 0:03:00]}  g6 {[%clk 0:02:58]} 3. Bxf6 {[%clk 0:03:00]}  exf6 {[%clk 0:02:58]} 4. e3 {[%clk 0:03:01]}  f5 {[%clk 0:02:59]} 5. g3 {[%clk 0:02:57]}  h5 {[%clk 0:02:59]} 6. h4 {[%clk 0:02:53]}  d6 {[%clk 0:02:59]} 7. Bg2 {[%clk 0:02:53]}  Nd7 {[%clk 0:02:59]} 8. Ne2 {[%clk 0:02:53]}  Nf6 {[%clk 0:02:59]} 9. c4 {[%clk 0:02:53]}  Ng4 {[%clk 0:02:59]} 10. Nbc3 {[%clk 0:02:53]}  Bh6 {[%clk 0:02:59]} 11. Qb3 {[%clk 0:02:50]}  O-O {[%clk 0:02:57]} 12. Nd5 {[%clk 0:02:47]}  c6 {[%clk 0:02:54]} 13. Ndf4 {[%clk 0:02:47]}  Qe7 {[%clk 0:02:49]} 14. O-O {[%clk 0:02:45]}  g5 {[%clk 0:02:45]} 15. hxg5 {[%clk 0:02:07]}  Qxg5 {[%clk 0:02:44]} 16. f3 {[%clk 0:02:07]}  Nf6 {[%clk 0:02:15]} 17. Kf2 {[%clk 0:02:07]}  Re8 {[%clk 0:02:10]} 18. Rh1 {[%clk 0:02:07]}  Re7 {[%clk 0:01:41]} 19. Rh4 {[%clk 0:02:06]}  Bd7 {[%clk 0:01:35]} 20. Rah1 {[%clk 0:02:05]}  Rae8 {[%clk 0:01:35]} 21. Qd3 {[%clk 0:01:32]}  Bg7 {[%clk 0:01:19]} 22. Bf1 {[%clk 0:01:22]}  a6 {[%clk 0:01:14]} 23. Ng2 {[%clk 0:01:18]}  b5 {[%clk 0:01:05]} 24. Nef4 {[%clk 0:01:17]}  bxc4 {[%clk 0:00:57]} 25. Qxc4 {[%clk 0:01:18]}  c5 {[%clk 0:00:31]} 26. Rxh5 {[%clk 0:00:41]}  Nxh5 {[%clk 0:00:29]} 27. Rxh5 {[%clk 0:00:42]}  Qf6 {[%clk 0:00:24]} 28. Nd5 {[%clk 0:00:41]}  Qg6 {[%clk 0:00:23]} 29. Ngf4 {[%clk 0:00:39]}  Qxh5 {[%clk 0:00:13]} 30. Nxe7+ {[%clk 0:00:38]}  Rxe7 {[%clk 0:00:13]} 31. Nxh5 {[%clk 0:00:39]}  cxd4 {[%clk 0:00:12]} 32. Nxg7 {[%clk 0:00:39]}  dxe3+ {[%clk 0:00:12]} 33. Ke1 {[%clk 0:00:39]}  Bb5 {[%clk 0:00:11]} 34. Qd4 {[%clk 0:00:38]}  e2 {[%clk 0:00:11]} 35. Bh3 {[%clk 0:00:36]}  Rc7 {[%clk 0:00:10]} 36. Qd2 {[%clk 0:00:24]}  Kxg7 {[%clk 0:00:07]} 37. Qg5+ {[%clk 0:00:19]}  Kh8 {[%clk 0:00:04]} 38. Qd8+ {[%clk 0:00:19]}  Kg7 {[%clk 0:00:03]} 39. Qxc7 {[%clk 0:00:20]} 1-0


[Site "https://www.chess.com"]

[Event "Titled Tuesday Blitz June 1 2021"]
[White "Girsh, Daniel"]
[Black "Ozkan, Ervin"]
[WhiteFideId "30949190"]
[BlackFideId "6306004"]
[WhiteElo "2398"]
[BlackElo "2226"]
[Result "0-1"]
[Round "10"]
[TimeControl "180+1"]
[Date "2021.06.01"]
[WhiteClock "0:00:16"]
[BlackClock "0:00:48"]

1. d4 {[%clk 0:03:00]}  Nf6 {[%clk 0:02:59]} 2. c4 {[%clk 0:03:01]}  g6 {[%clk 0:02:59]} 3. Nc3 {[%clk 0:03:00]}  d5 {[%clk 0:02:59]} 4. Nf3 {[%clk 0:02:56]}  Bg7 {[%clk 0:02:58]} 5. Bg5 {[%clk 0:02:57]}  Ne4 {[%clk 0:02:57]} 6. Bh4 {[%clk 0:02:57]}  Nxc3 {[%clk 0:02:49]} 7. bxc3 {[%clk 0:02:58]}  dxc4 {[%clk 0:02:47]} 8. e3 {[%clk 0:02:58]}  O-O {[%clk 0:02:41]} 9. Bxc4 {[%clk 0:02:56]}  b6 {[%clk 0:02:39]} 10. O-O {[%clk 0:02:56]}  c5 {[%clk 0:02:36]} 11. a4 {[%clk 0:02:50]}  Bb7 {[%clk 0:02:31]} 12. a5 {[%clk 0:02:47]}  Qc7 {[%clk 0:02:17]} 13. a6 {[%clk 0:02:41]}  Bc6 {[%clk 0:02:12]} 14. Bg3 {[%clk 0:02:39]}  Qc8 {[%clk 0:01:56]} 15. Ne5 {[%clk 0:02:31]}  cxd4 {[%clk 0:01:52]} 16. cxd4 {[%clk 0:02:18]}  Bxe5 {[%clk 0:01:51]} 17. Bxe5 {[%clk 0:02:15]}  Bxg2 {[%clk 0:01:49]} 18. Bxf7+ {[%clk 0:02:08]}  Rxf7 {[%clk 0:01:50]} 19. Kxg2 {[%clk 0:02:08]}  Nxa6 {[%clk 0:01:49]} 20. f3 {[%clk 0:01:58]}  Nb4 {[%clk 0:01:40]} 21. Qb3 {[%clk 0:01:51]}  Qc2+ {[%clk 0:01:40]} 22. Qxc2 {[%clk 0:01:51]}  Nxc2 {[%clk 0:01:41]} 23. Rae1 {[%clk 0:01:42]}  Nxe1+ {[%clk 0:01:39]} 24. Rxe1 {[%clk 0:01:43]}  e6 {[%clk 0:01:40]} 25. Rc1 {[%clk 0:01:41]}  a5 {[%clk 0:01:38]} 26. Rc6 {[%clk 0:01:41]}  Rb7 {[%clk 0:01:35]} 27. Rxe6 {[%clk 0:01:39]}  a4 {[%clk 0:01:35]} 28. d5 {[%clk 0:01:39]}  a3 {[%clk 0:01:35]} 29. d6 {[%clk 0:01:38]}  a2 {[%clk 0:01:34]} 30. Ba1 {[%clk 0:01:37]}  b5 {[%clk 0:01:34]} 31. d7 {[%clk 0:01:16]}  Rxd7 {[%clk 0:01:33]} 32. Rb6 {[%clk 0:01:12]}  Rd1 {[%clk 0:01:33]} 33. Be5 {[%clk 0:01:07]}  Rb1 {[%clk 0:01:28]} 34. Rb7 {[%clk 0:01:07]}  a1=Q {[%clk 0:01:28]} 35. Rg7+ {[%clk 0:01:06]}  Kf8 {[%clk 0:01:28]} 36. Bxa1 {[%clk 0:01:06]}  Ra2+ {[%clk 0:01:26]} 37. Kg3 {[%clk 0:01:04]}  Rg1+ {[%clk 0:01:24]} 38. Kf4 {[%clk 0:01:02]}  Raxa1 {[%clk 0:01:20]} 39. Rxh7 {[%clk 0:01:02]}  b4 {[%clk 0:01:19]} 40. Rb7 {[%clk 0:01:01]}  Rab1 {[%clk 0:01:17]} 41. Ke5 {[%clk 0:00:58]}  b3 {[%clk 0:01:17]} 42. Kf6 {[%clk 0:00:58]}  Ke8 {[%clk 0:01:17]} 43. Ke6 {[%clk 0:00:58]}  Kd8 {[%clk 0:01:15]} 44. e4 {[%clk 0:00:54]}  b2 {[%clk 0:01:14]} 45. e5 {[%clk 0:00:54]}  Rg2 {[%clk 0:01:11]} 46. Kf7 {[%clk 0:00:49]}  Rf1 {[%clk 0:01:09]} 47. e6 {[%clk 0:00:28]}  Rxf3+ {[%clk 0:01:09]} 48. Kg7 {[%clk 0:00:29]}  Re2 {[%clk 0:01:05]} 49. h4 {[%clk 0:00:21]}  Rf1 {[%clk 0:01:02]} 50. h5 {[%clk 0:00:17]}  gxh5 {[%clk 0:01:00]} 51. Rb4 {[%clk 0:00:16]}  b1=Q {[%clk 0:00:57]} 52. e7+ {[%clk 0:00:16]}  Rxe7+ {[%clk 0:00:54]} 53. Kh6 {[%clk 0:00:16]}  Qh7+ {[%clk 0:00:52]} 54. Kg5 {[%clk 0:00:16]}  Qf5+ {[%clk 0:00:48]} 55. Kh6 {[%clk 0:00:16]}  Rh7# {[%clk 0:00:48]} 0-1


[Site "https://www.chess.com"]

[Event "Titled Tuesday Blitz June 1 2021"]
[White "Gokerkan, Cem Kaan"]
[Black "Vazquez, Facundo"]
[WhiteFideId "6336760"]
[BlackFideId "3007669"]
[WhiteElo "2361"]
[BlackElo "1984"]
[Result "1-0"]
[Round "10"]
[TimeControl "180+1"]
[Date "2021.06.01"]
[WhiteClock "0:01:37"]
[BlackClock "0:00:02"]

1. b3 {[%clk 0:03:00]}  d5 {[%clk 0:02:14]} 2. Bb2 {[%clk 0:02:59]}  c5 {[%clk 0:02:14]} 3. Nf3 {[%clk 0:02:59]}  Nc6 {[%clk 0:02:14]} 4. e3 {[%clk 0:03:00]}  Nf6 {[%clk 0:02:14]} 5. d4 {[%clk 0:03:00]}  e6 {[%clk 0:02:14]} 6. Nbd2 {[%clk 0:03:00]}  cxd4 {[%clk 0:02:12]} 7. exd4 {[%clk 0:03:00]}  Bd6 {[%clk 0:02:12]} 8. Bd3 {[%clk 0:03:00]}  h6 {[%clk 0:02:10]} 9. O-O {[%clk 0:03:00]}  Qc7 {[%clk 0:02:10]} 10. a3 {[%clk 0:02:58]}  Bd7 {[%clk 0:02:07]} 11. Re1 {[%clk 0:02:58]}  O-O {[%clk 0:01:46]} 12. c4 {[%clk 0:02:56]}  Rad8 {[%clk 0:01:31]} 13. c5 {[%clk 0:02:53]}  Bf4 {[%clk 0:01:26]} 14. b4 {[%clk 0:02:53]}  a6 {[%clk 0:01:22]} 15. g3 {[%clk 0:02:46]}  Bxd2 {[%clk 0:01:13]} 16. Qxd2 {[%clk 0:02:46]}  Ne7 {[%clk 0:00:51]} 17. a4 {[%clk 0:02:40]}  Nf5 {[%clk 0:00:29]} 18. b5 {[%clk 0:02:37]}  Ne4 {[%clk 0:00:23]} 19. Qb4 {[%clk 0:02:24]}  a5 {[%clk 0:00:17]} 20. Qb3 {[%clk 0:02:18]}  Ng5 {[%clk 0:00:17]} 21. Nxg5 {[%clk 0:02:16]}  hxg5 {[%clk 0:00:17]} 22. Qc3 {[%clk 0:02:03]}  Rc8 {[%clk 0:00:08]} 23. b6 {[%clk 0:02:02]}  Qd8 {[%clk 0:00:07]} 24. Qxa5 {[%clk 0:02:01]}  Qf6 {[%clk 0:00:06]} 25. Qd2 {[%clk 0:02:02]}  Nh6 {[%clk 0:00:03]} 26. a5 {[%clk 0:01:57]}  Ng4 {[%clk 0:00:02]} 27. h3 {[%clk 0:01:57]}  Nh6 {[%clk 0:00:02]} 28. a6 {[%clk 0:01:57]}  bxa6 {[%clk 0:00:03]} 29. Bxa6 {[%clk 0:01:58]}  Rb8 {[%clk 0:00:03]} 30. Rac1 {[%clk 0:01:56]}  Bc6 {[%clk 0:00:02]} 31. Qe2 {[%clk 0:01:50]}  Qf5 {[%clk 0:00:02]} 32. Kh2 {[%clk 0:01:40]}  g4 {[%clk 0:00:02]} 33. Bd3 {[%clk 0:01:40]}  Qh5 {[%clk 0:00:02]} 34. h4 {[%clk 0:01:38]}  g5 {[%clk 0:00:02]} 35. Qe5 {[%clk 0:01:37]}  f6 {[%clk 0:00:02]} 36. Qxe6+ {[%clk 0:01:37]} 1-0


[Site "https://www.chess.com"]

[Event "Titled Tuesday Blitz June 1 2021"]
[White "Grigorov, Grigor"]
[Black "Lamaze, Simon"]
[WhiteFideId "2907313"]
[BlackFideId "36069264"]
[WhiteElo "2510"]
[BlackElo "1938"]
[Result "1-0"]
[Round "10"]
[TimeControl "180+1"]
[Date "2021.06.01"]
[WhiteClock "0:00:58"]
[BlackClock "0:00:11"]

1. d4 {[%clk 0:03:00]}  Nf6 {[%clk 0:02:59]} 2. c4 {[%clk 0:03:00]}  e6 {[%clk 0:02:59]} 3. Nf3 {[%clk 0:03:00]}  b6 {[%clk 0:02:59]} 4. g3 {[%clk 0:03:00]}  Bb7 {[%clk 0:02:59]} 5. Bg2 {[%clk 0:03:00]}  Be7 {[%clk 0:03:00]} 6. O-O {[%clk 0:03:00]}  O-O {[%clk 0:03:00]} 7. Nc3 {[%clk 0:02:59]}  Ne4 {[%clk 0:02:58]} 8. Bd2 {[%clk 0:02:59]}  d6 {[%clk 0:02:46]} 9. Qc2 {[%clk 0:02:49]}  Nxc3 {[%clk 0:02:41]} 10. Bxc3 {[%clk 0:02:48]}  f5 {[%clk 0:02:37]} 11. Ne1 {[%clk 0:02:47]}  Bxg2 {[%clk 0:02:36]} 12. Nxg2 {[%clk 0:02:48]}  Bf6 {[%clk 0:02:18]} 13. e4 {[%clk 0:02:44]}  Qd7 {[%clk 0:01:52]} 14. exf5 {[%clk 0:02:42]}  exf5 {[%clk 0:01:52]} 15. d5 {[%clk 0:02:40]}  Bxc3 {[%clk 0:01:42]} 16. Qxc3 {[%clk 0:02:40]}  a5 {[%clk 0:01:41]} 17. Nf4 {[%clk 0:02:39]}  Na6 {[%clk 0:01:40]} 18. Ne6 {[%clk 0:02:19]}  Rf7 {[%clk 0:01:39]} 19. Rfe1 {[%clk 0:02:19]}  Re8 {[%clk 0:01:26]} 20. Re2 {[%clk 0:02:18]}  Ree7 {[%clk 0:01:25]} 21. Rae1 {[%clk 0:02:17]}  Nc5 {[%clk 0:01:25]} 22. Nxc5 {[%clk 0:02:13]}  dxc5 {[%clk 0:01:26]} 23. Re6 {[%clk 0:02:11]}  Kf8 {[%clk 0:00:47]} 24. Qe5 {[%clk 0:01:59]}  Qd8 {[%clk 0:00:34]} 25. Qf4 {[%clk 0:01:51]}  g6 {[%clk 0:00:24]} 26. Qe5 {[%clk 0:01:46]}  Rxe6 {[%clk 0:00:20]} 27. dxe6 {[%clk 0:01:23]}  Rg7 {[%clk 0:00:16]} 28. a4 {[%clk 0:01:04]}  Qd4 {[%clk 0:00:11]} 29. e7+ {[%clk 0:00:59]}  Ke8 {[%clk 0:00:11]} 30. Qe6 {[%clk 0:00:58]} 1-0


[Site "https://www.chess.com"]

[Event "Titled Tuesday Blitz June 1 2021"]
[White "Hess, Robert"]
[Black "Vlassov, Nikolai"]
[WhiteFideId "2022036"]
[BlackFideId "4103360"]
[WhiteElo "2557"]
[BlackElo "2407"]
[Result "1-0"]
[Round "10"]
[TimeControl "180+1"]
[Date "2021.06.01"]
[WhiteClock "0:00:10"]
[BlackClock "0:00:04"]

1. b3 {[%clk 0:03:00]}  e5 {[%clk 0:02:47]} 2. Bb2 {[%clk 0:03:01]}  Nc6 {[%clk 0:02:47]} 3. e3 {[%clk 0:03:01]}  d5 {[%clk 0:02:46]} 4. Bb5 {[%clk 0:03:02]}  Bd6 {[%clk 0:02:46]} 5. Nf3 {[%clk 0:03:01]}  Qe7 {[%clk 0:02:45]} 6. d4 {[%clk 0:03:01]}  e4 {[%clk 0:02:34]} 7. Ne5 {[%clk 0:03:01]}  Bd7 {[%clk 0:02:34]} 8. c4 {[%clk 0:02:55]}  Nxe5 {[%clk 0:02:09]} 9. dxe5 {[%clk 0:02:55]}  Bb4+ {[%clk 0:01:55]} 10. Kf1 {[%clk 0:02:49]}  Bxb5 {[%clk 0:01:54]} 11. cxb5 {[%clk 0:02:49]}  O-O-O {[%clk 0:01:33]} 12. b6 {[%clk 0:02:25]}  Bc5 {[%clk 0:01:20]} 13. bxc7 {[%clk 0:02:20]}  Kxc7 {[%clk 0:01:15]} 14. Nc3 {[%clk 0:02:19]}  Qe6 {[%clk 0:01:10]} 15. Rc1 {[%clk 0:02:17]}  Kb8 {[%clk 0:01:04]} 16. Nxe4 {[%clk 0:02:03]}  Be7 {[%clk 0:00:59]} 17. Nc5 {[%clk 0:01:55]}  Bxc5 {[%clk 0:00:55]} 18. Rxc5 {[%clk 0:01:56]}  Ne7 {[%clk 0:00:55]} 19. g3 {[%clk 0:01:26]}  Qh3+ {[%clk 0:00:49]} 20. Ke2 {[%clk 0:01:26]}  Rc8 {[%clk 0:00:31]} 21. Rxc8+ {[%clk 0:01:14]}  Rxc8 {[%clk 0:00:30]} 22. Qd3 {[%clk 0:00:36]}  Nc6 {[%clk 0:00:23]} 23. Rc1 {[%clk 0:00:24]}  Qh5+ {[%clk 0:00:18]} 24. Kf1 {[%clk 0:00:19]}  Qxh2 {[%clk 0:00:18]} 25. Qxd5 {[%clk 0:00:19]}  a6 {[%clk 0:00:17]} 26. Qg2 {[%clk 0:00:13]}  Qh5 {[%clk 0:00:16]} 27. Qe4 {[%clk 0:00:10]}  Ka7 {[%clk 0:00:11]} 28. Kg2 {[%clk 0:00:09]}  Qg6 {[%clk 0:00:10]} 29. Qxg6 {[%clk 0:00:09]}  hxg6 {[%clk 0:00:11]} 30. f4 {[%clk 0:00:09]}  Rd8 {[%clk 0:00:11]} 31. Rc2 {[%clk 0:00:07]}  Nb4 {[%clk 0:00:11]} 32. Re2 {[%clk 0:00:08]}  Rd3 {[%clk 0:00:09]} 33. Bd4+ {[%clk 0:00:06]}  Kb8 {[%clk 0:00:09]} 34. Kf3 {[%clk 0:00:06]}  f5 {[%clk 0:00:08]} 35. exf6 {[%clk 0:00:06]}  gxf6 {[%clk 0:00:08]} 36. Bxf6 {[%clk 0:00:07]}  Kc8 {[%clk 0:00:06]} 37. Ke4 {[%clk 0:00:06]}  Rd1 {[%clk 0:00:06]} 38. Bc3 {[%clk 0:00:05]}  Nd5 {[%clk 0:00:05]} 39. Bd4 {[%clk 0:00:05]}  Nc7 {[%clk 0:00:05]} 40. g4 {[%clk 0:00:03]}  Kd7 {[%clk 0:00:05]} 41. f5 {[%clk 0:00:04]}  gxf5+ {[%clk 0:00:06]} 42. gxf5 {[%clk 0:00:05]}  Nb5 {[%clk 0:00:06]} 43. Be5 {[%clk 0:00:03]}  Ke7 {[%clk 0:00:03]} 44. Rg2 {[%clk 0:00:03]}  Kf8 {[%clk 0:00:03]} 45. Rg6 {[%clk 0:00:03]}  Kf7 {[%clk 0:00:02]} 46. Rf6+ {[%clk 0:00:03]}  Ke7 {[%clk 0:00:03]} 47. Rb6 {[%clk 0:00:04]}  Nc3+ {[%clk 0:00:03]} 48. Bxc3 {[%clk 0:00:04]}  Kd7 {[%clk 0:00:03]} 49. Rxb7+ {[%clk 0:00:04]}  Kc6 {[%clk 0:00:04]} 50. Rg7 {[%clk 0:00:04]}  Rc1 {[%clk 0:00:04]} 51. Rg6+ {[%clk 0:00:05]}  Kb5 {[%clk 0:00:04]} 52. Bd4 {[%clk 0:00:06]}  Kb4 {[%clk 0:00:04]} 53. Rb6+ {[%clk 0:00:07]}  Ka3 {[%clk 0:00:04]} 54. Rxa6+ {[%clk 0:00:07]}  Kb4 {[%clk 0:00:05]} 55. Ra4+ {[%clk 0:00:07]}  Kb5 {[%clk 0:00:05]} 56. Rc4 {[%clk 0:00:08]}  Rf1 {[%clk 0:00:04]} 57. a4+ {[%clk 0:00:08]}  Ka6 {[%clk 0:00:03]} 58. Rc6+ {[%clk 0:00:08]}  Kb7 {[%clk 0:00:04]} 59. Re6 {[%clk 0:00:09]}  Rh1 {[%clk 0:00:03]} 60. f6 {[%clk 0:00:09]}  Rh6 {[%clk 0:00:04]} 61. Re7+ {[%clk 0:00:09]}  Kc6 {[%clk 0:00:04]} 62. f7 {[%clk 0:00:10]}  Re6+ {[%clk 0:00:04]} 63. Rxe6+ {[%clk 0:00:10]} 1-0


[Site "https://www.chess.com"]

[Event "Titled Tuesday Blitz June 1 2021"]
[White "Ibrahimli, Murad"]
[Black "Manafov, Vugar"]
[WhiteFideId "13410229"]
[BlackFideId "13410814"]
[WhiteElo "2109"]
[BlackElo "2274"]
[Result "1/2-1/2"]
[Round "10"]
[TimeControl "180+1"]
[Date "2021.06.01"]
[WhiteClock "0:00:13"]
[BlackClock "0:00:12"]

1. d4 {[%clk 0:03:00]}  Nf6 {[%clk 0:03:00]} 2. c4 {[%clk 0:02:57]}  e6 {[%clk 0:03:00]} 3. Nf3 {[%clk 0:02:56]}  Bb4+ {[%clk 0:03:01]} 4. Bd2 {[%clk 0:02:56]}  a5 {[%clk 0:03:01]} 5. g3 {[%clk 0:02:56]}  O-O {[%clk 0:03:02]} 6. Bg2 {[%clk 0:02:56]}  d5 {[%clk 0:03:02]} 7. Qc2 {[%clk 0:02:56]}  Nbd7 {[%clk 0:03:02]} 8. O-O {[%clk 0:02:56]}  c6 {[%clk 0:03:03]} 9. b3 {[%clk 0:02:48]}  Ne4 {[%clk 0:02:56]} 10. a3 {[%clk 0:02:21]}  Nxd2 {[%clk 0:02:32]} 11. Nbxd2 {[%clk 0:02:17]}  Be7 {[%clk 0:02:31]} 12. e4 {[%clk 0:02:16]}  b5 {[%clk 0:02:27]} 13. cxb5 {[%clk 0:02:10]}  cxb5 {[%clk 0:02:27]} 14. exd5 {[%clk 0:02:10]}  exd5 {[%clk 0:02:28]} 15. Rfe1 {[%clk 0:02:05]}  Bb7 {[%clk 0:02:19]} 16. Nf1 {[%clk 0:01:52]}  Bf6 {[%clk 0:02:03]} 17. Ne3 {[%clk 0:01:51]}  Qb6 {[%clk 0:02:00]} 18. Qf5 {[%clk 0:01:31]}  Qd6 {[%clk 0:01:59]} 19. Ng4 {[%clk 0:01:28]}  Rfd8 {[%clk 0:01:39]} 20. h4 {[%clk 0:01:12]}  g6 {[%clk 0:01:39]} 21. Nxf6+ {[%clk 0:01:08]}  Nxf6 {[%clk 0:01:36]} 22. Qe5 {[%clk 0:01:06]}  Ne4 {[%clk 0:01:36]} 23. Qxd6 {[%clk 0:01:05]}  Rxd6 {[%clk 0:01:36]} 24. Rac1 {[%clk 0:01:05]}  Rd7 {[%clk 0:00:34]} 25. Ne5 {[%clk 0:01:03]}  Re7 {[%clk 0:00:34]} 26. Nd3 {[%clk 0:00:59]}  Rae8 {[%clk 0:00:32]} 27. b4 {[%clk 0:00:52]}  axb4 {[%clk 0:00:29]} 28. axb4 {[%clk 0:00:53]}  Kf8 {[%clk 0:00:23]} 29. Ra1 {[%clk 0:00:43]}  f6 {[%clk 0:00:19]} 30. Ra7 {[%clk 0:00:42]}  Bc8 {[%clk 0:00:18]} 31. Rxe7 {[%clk 0:00:39]}  Rxe7 {[%clk 0:00:19]} 32. Rc1 {[%clk 0:00:40]}  Bf5 {[%clk 0:00:20]} 33. Nc5 {[%clk 0:00:39]}  h5 {[%clk 0:00:16]} 34. Bf1 {[%clk 0:00:35]}  Bd7 {[%clk 0:00:11]} 35. Nxd7+ {[%clk 0:00:34]}  Rxd7 {[%clk 0:00:12]} 36. Bxb5 {[%clk 0:00:34]}  Rb7 {[%clk 0:00:13]} 37. Rc8+ {[%clk 0:00:32]}  Kg7 {[%clk 0:00:13]} 38. Bc6 {[%clk 0:00:28]}  Rxb4 {[%clk 0:00:13]} 39. Rc7+ {[%clk 0:00:27]}  Kh8 {[%clk 0:00:12]} 40. Bxd5 {[%clk 0:00:27]}  Rxd4 {[%clk 0:00:13]} 41. Bf7 {[%clk 0:00:27]}  Kg7 {[%clk 0:00:12]} 42. Be8+ {[%clk 0:00:27]}  Kh6 {[%clk 0:00:12]} 43. Re7 {[%clk 0:00:20]}  f5 {[%clk 0:00:10]} 44. Re6 {[%clk 0:00:20]}  Rd6 {[%clk 0:00:09]} 45. Rxd6 {[%clk 0:00:18]}  Nxd6 {[%clk 0:00:10]} 46. Bc6 {[%clk 0:00:18]}  Kg7 {[%clk 0:00:10]} 47. Kg2 {[%clk 0:00:18]}  Kf6 {[%clk 0:00:11]} 48. Kf3 {[%clk 0:00:19]}  Ke5 {[%clk 0:00:12]} 49. Bd7 {[%clk 0:00:19]}  Nc4 {[%clk 0:00:11]} 50. Be8 {[%clk 0:00:19]}  Kf6 {[%clk 0:00:11]} 51. Kf4 {[%clk 0:00:19]}  Ne5 {[%clk 0:00:11]} 52. Ke3 {[%clk 0:00:19]}  Ng4+ {[%clk 0:00:11]} 53. Ke2 {[%clk 0:00:19]}  Ne5 {[%clk 0:00:12]} 54. f3 {[%clk 0:00:19]}  Nc4 {[%clk 0:00:12]} 55. Kd3 {[%clk 0:00:19]}  Nd6 {[%clk 0:00:12]} 56. Ba4 {[%clk 0:00:19]}  f4 {[%clk 0:00:12]} 57. gxf4 {[%clk 0:00:16]}  Nf5 {[%clk 0:00:12]} 58. Ke4 {[%clk 0:00:15]}  Nxh4 {[%clk 0:00:13]} 59. Bd7 {[%clk 0:00:15]}  Nf5 {[%clk 0:00:11]} 60. Kd3 {[%clk 0:00:14]}  h4 {[%clk 0:00:10]} 61. Ke2 {[%clk 0:00:15]}  Ke7 {[%clk 0:00:10]} 62. Bxf5 {[%clk 0:00:10]}  gxf5 {[%clk 0:00:11]} 63. Kf2 {[%clk 0:00:11]}  Kf6 {[%clk 0:00:09]} 64. Kg2 {[%clk 0:00:11]}  Kg6 {[%clk 0:00:10]} 65. Kh3 {[%clk 0:00:12]}  Kh5 {[%clk 0:00:10]} 66. Kg2 {[%clk 0:00:12]}  Kg6 {[%clk 0:00:11]} 67. Kh3 {[%clk 0:00:13]}  Kh5 {[%clk 0:00:11]} 68. Kg2 {[%clk 0:00:13]}  Kg6 {[%clk 0:00:12]} 1/2-1/2


[Site "https://www.chess.com"]